Workbook

Sheet Cover
B3: Excel & Business Math 08
B4: Arithmetic Tips for Add, Subtract, Multiply, Divide, Exponents, Rounding
AL5: 1 | AM5: Math Operators used in Excel | AN5: =AL5&") "&AM5 -> 1) Math Operators used in Excel
C6: Topics: | AL6: 2 | AM6: Math Order of Operations | AN6: 2) Math Order of Operations
C7: 1) Integers & Decimals | AC7: Whole Numbers & Decimals | AD7: =ROWS(AD$7:AD7)&") "&AC7 -> 1) Whole Numbers & Decimals | AL7: 3 | AM7: Comparative Operators used in Excel | AN7: 3) Comparative Operators used in Excel
C8: 2) Write Number in English | AC8: Write Number in English | AD8: =ROWS(AD$7:AD8)&") "&AC8 -> 2) Write Number in English | AL8: 4 | AM8: Types of Formulas seen in this class | AN8: 4) Types of Formulas seen in this class
C9: 3) Math Operators & Order of Operations | AC9: Math Operators & Order of Operations | AD9: =ROWS(AD$7:AD9)&") "&AC9 -> 3) Math Operators & Order of Operations | AL9: 5 | AM9: How to Build Formulas for Business Math | AN9: 5) How to Build Formulas for Business Math
C10: 4) Adding in Excel | AC10: Adding in Excel | AD10: =ROWS(AD$7:AD10)&") "&AC10 -> 4) Adding in Excel
C11: 5) Subtracting in Excel | AC11: Subtracting in Excel | AD11: =ROWS(AD$7:AD11)&") "&AC11 -> 5) Subtracting in Excel | AM11: =#REF! ->  | AN11: =REPLACE(AS21,1,SEARCH("=",AS21)-1,"") -> 
C12: 6) Check Work When Subtracting or Adding | AC12: Check Work When Subtracting or Adding | AD12: =ROWS(AD$7:AD12)&") "&AC12 -> 6) Check Work When Subtracting or Adding | AM12: =#REF! ->  | AN12: =REPLACE(AS22,1,SEARCH("=",AS22)-1,"") -> 
C13: 7) Multiplying in Excel | AC13: Multiplying in Excel | AD13: =ROWS(AD$7:AD13)&") "&AC13 -> 7) Multiplying in Excel | AM13: =#REF! ->  | AN13: =REPLACE(AS23,1,SEARCH("=",AS23)-1,"") -> 
C14: 8) Dividing in Excel | AC14: Dividing in Excel | AD14: =ROWS(AD$7:AD14)&") "&AC14 -> 8) Dividing in Excel | AM14: =#REF! ->  | AN14: =REPLACE(AS24,1,SEARCH("=",AS24)-1,"") -> 
C15: 9) Check Work When Multiplying or Dividing | AC15: Check Work When Multiplying or Dividing | AD15: =ROWS(AD$7:AD15)&") "&AC15 -> 9) Check Work When Multiplying or Dividing | AM15: =#REF! ->  | AN15: =REPLACE(AS25,1,SEARCH("=",AS25)-1,"") -> 
C16: 10) Exponents | AC16: Exponents | AD16: =ROWS(AD$7:AD16)&") "&AC16 -> 10) Exponents | AM16: =REPLACE(AS16,1,SEARCH("=",AS16)-1,"") ->  | AN16: =#REF! ->  | AS16: =#REF! -> 
C17: 11) More ROUND Examples | AC17: Rounding & ROUND Function Video Examples: | AD17: =ROWS(AD$7:AD17)&") "&AC17 -> 11) Rounding & ROUND Function Video Examples: | AM17: =REPLACE(AS17,1,SEARCH("=",AS17)-1,"") ->  | AN17: =#REF! ->  | AS17: =#REF! -> 
AM18: =REPLACE(AS18,1,SEARCH("=",AS18)-1,"") ->  | AN18: =#REF! ->  | AS18: =#REF! -> 
AC19: 1) Integers & Decimals | AD19: Integers & Decimals | AM19: =REPLACE(AS19,1,SEARCH("=",AS19)-1,"") ->  | AN19: =#REF! ->  | AS19: =#REF! -> 
AC20: 2) Write Number in English | AD20: Write Number in English | AM20: =REPLACE(AS20,1,SEARCH("=",AS20)-1,"") ->  | AS20: =#REF! -> 
AC21: 3) Math Operators & Order of Operations | AD21: Math Operators & Order of Operations | AS21: =#REF! -> 
AC22: 4) Adding in Excel | AD22: Adding in Excel | AS22: =#REF! -> 
AC23: 5) Subtracting in Excel | AD23: Subtracting in Excel | AS23: =#REF! -> 
AC24: 6) Check Work When Subtracting or Adding | AD24: Check Work When Subtracting or Adding | AS24: =#REF! -> 
AC25: 7) Multiplying in Excel | AD25: Multiplying in Excel | AS25: =#REF! -> 
AC26: 8) Dividing in Excel | AD26: Dividing in Excel
AC27: 9) Check Work When Multiplying or Dividing | AD27: Check Work When Multiplying or Dividing
AC28: 10) Exponents | AD28: Exponents
AC29: 11) More ROUND Examples | AD29: More ROUND Examples

Sheet WID Words
A3: Define Whole Number (Counting Numbers) ==> A number with no decimals, such as 5,678, and not negative
A4: Define Integer ==> Positive & Negative Counting Numbers and Zero
A5: Define Decimal ==> A number written with a decimal such as 4.987 or 0.062 or -1.50
A7: Whole Numbers: numbers to the left of the decimal point. Uses the ten one-place digits: 0,1,2,3,4,5,6,7,8,9. Use a comma every third place. | P7: The word "and" goes here when you write the words. | Q7: Decimals: numbers to the right of the decimal point - representing parts of a whole - "a whole" is the number 1 and the "part" is a number between 1 and 0.
A8: Trillions | D8: Billions | G8: Millions | J8: Thousands | M8: Ones | P8: "AND"
A9: ="Hundred "&A8 -> Hundred Trillions | B9: ="Ten "&A8 -> Ten Trillions | C9: =A8 -> Trillions | D9: ="Hundred "&D8 -> Hundred Billions | E9: ="Ten "&D8 -> Ten Billions | F9: =D8 -> Billions | G9: ="Hundred "&G8 -> Hundred Millions | H9: ="Ten "&G8 -> Ten Millions | I9: =G8 -> Millions | J9: ="Hundred "&J8 -> Hundred Thousands | K9: ="Ten "&J8 -> Ten Thousands | L9: =J8 -> Thousands | M9: Hundreds | N9: Tens | O9: Ones | P9: Decimal Point (and) | Q9: Tenths | R9: Hundredths | S9: Thousandths | T9: Ten-Thousandths | U9: Hundred-Thousandths | V9: Millionths
D10: 4 | E10: 5 | F10: 6 | G10: 7 | H10: 5 | I10: 8 | J10: 4 | K10: 5 | L10: 2 | M10: 1 | N10: 1 | O10: 9 | P10: ■ | Q10: 1 | R10: 5 | S10: 5

Sheet Write It
A1: Number | B1: Write it
A2: 150215.29

Sheet Write It (an)
A1: Number | B1: Write it
A2: 150215.29 | B2: One Hundred Fifty Thousand, Two Hundred Fifteen Dollars and Twenty Nine Cents -- | D2: =SpellNumber(A2) -> One Hundred Fifty Thousand Two Hundred Fifteen Dollars and Twenty Nine Cents
A3: 4.567584521e+11 | B3: Four Hundred Fifty Six Billion, Seven Hundred Fifty Eight Million, Four Hundred Fifty Two Thousand, One Hundred Nineteen Dollars and Sixteen Cents -- | D3: =SpellNumber(A3) -> Four Hundred Fifty Six Billion Seven Hundred Fifty Eight Million Four Hundred Fifty Two Thousand One Hundred Nineteen Dollars and Fifteen Cents

Sheet Check
A1: Sioux's Accounting | D1: No. | E1: 4025
A2: 3985 14th Ave. S. | E2: 66-420
A3: Seattle, WA 98106 | E3: 1210
D4: Date | E4: =TODAY() -> 2018-01-13
B5: PAY TO THE ORDER OF: | C5: Home Depot | D5: Amount | E5: 1528.72
B6: Amount | E6: Dollars
A8: Boeing Employees Credit Union
A9: 12770 Gateway Dr.
A10: Tukwila, WA 98168
B11: By | C11: Sioux Radcoolinator
A12: Memo | B12: Purchase Desk
B13: l▪▪ 1210 ▪▪▪ 0420 l▪▪ 6005655960 ll■ 4025

Sheet Check (an)
A1: Sioux's Accounting | D1: No. | E1: 4025
A2: 3985 14th Ave. S. | E2: 66-420
A3: Seattle, WA 98106 | E3: 1210
D4: Date | E4: =TODAY() -> 2018-01-13
B5: PAY TO THE ORDER OF: | C5: Home Depot | D5: Amount | E5: 1528.72
B6: Amount | C6: One Thousand Five Hundred Twenty Eight & Seventy Two Cents | E6: Dollars
A8: Boeing Employees Credit Union
A9: 12770 Gateway Dr.
A10: Tukwila, WA 98168
B11: By | C11: Sioux Radcoolinator
A12: Memo | B12: Purchase Desk
B13: l▪▪ 1210 ▪▪▪ 0420 l▪▪ 6005655960 ll■ 4025

Sheet MOOO
A1: MOOO Example 1: | G1: Math Operators: | J1: Math Operators on the Standard Keyboard:
A2: Time Sheet using Military Time | G2: ( ) | H2: Parentheses. | J2: ( | K2: Shift + 9
A3: Gross Pay = Hours Worked * Wage per Hour | J3: ) | K3: Shift + 0
A4: Time In | B4: Time Out | C4: Wage | D4: Gross Pay | G4: ^ | H4: Raising to an exponent. ("caret", like carrot) | J4: ^ | K4: Shift + 6
A5: 8 | B5: 15 | C5: 27.75 | G5: * | H5: Multiplying. | J5: * | K5: Shift + 8, or Number Pad
G6: / | H6: Dividing. | J6: / | K6: / Key, or Number Pad
E7: =IF(_xlfn.ISFORMULA(D5),_xlfn.FORMULATEXT(D5),"") ->  | G7: + | H7: Adding. | J7: + | K7: Shift + =, or Number Pad
G8: - | H8: Subtracting or Negation. | J8: - | K8: - Key, or Number Pad
G10: Math order of operations | J10: Math order of operations
G11: 1 | H11: First, do everything in the parentheses | J11: 1 | K11: ( )
G12: 2 | H12: Second, do all exponents | J12: 2 | K12: ^
G13: 3 | H13: Third, do all multiplication and division, left to right | J13: 3 | K13: * / Left to Right
G14: 4 | H14: Fourth, do all adding and subtracting, left to right | J14: 4 | K14: + - Left to Right

Sheet MOOO (an)
A1: MOOO Example 1: | G1: Math Operators: | J1: Math Operators on the Standard Keyboard:
A2: Time Sheet using Military Time | G2: ( ) | H2: Parentheses. | J2: ( | K2: Shift + 9
A3: Gross Pay = Hours Worked * Wage per Hour | J3: ) | K3: Shift + 0
A4: Time In | B4: Time Out | C4: Wage | D4: Gross Pay | G4: ^ | H4: Raising to an exponent. ("caret", like carrot) | J4: ^ | K4: Shift + 6
A5: 8 | B5: 15 | C5: 27.75 | D5: =(B5-A5)*C5 -> 194.25 | E5: =IF(_xlfn.ISFORMULA(D5),_xlfn.FORMULATEXT(D5),"") -> =(B5-A5)*C5 | G5: * | H5: Multiplying. | J5: * | K5: Shift + 8, or Number Pad
G6: / | H6: Dividing. | J6: / | K6: / Key, or Number Pad
G7: + | H7: Adding. | J7: + | K7: Shift + =, or Number Pad
G8: - | H8: Subtracting or Negation. | J8: - | K8: - Key, or Number Pad
G10: Math order of operations | J10: Math order of operations
G11: 1 | H11: First, do everything in the parentheses | J11: 1 | K11: ( )
G12: 2 | H12: Second, do all exponents | J12: 2 | K12: ^
G13: 3 | H13: Third, do all multiplication and division, left to right | J13: 3 | K13: * / Left to Right
G14: 4 | H14: Fourth, do all adding and subtracting, left to right | J14: 4 | K14: + - Left to Right

Sheet Add
A1: Adding in Excel Example 1:
A2: If numbers are next to each other, use SUM Function with a range of cells, rather than using the + symbol
A3: Efficient to use SUM function because:
A4: Fast.
A5: Can handle structural changes like inserting a row.
A6: Invoice 12305
A7: Product | B7: Amount
A8: Quad | B8: 45.32 | D8: Efficient to use SUM function because:
A9: Sunshine | B9: 50 | D9: 1) Fast.
A10: Carlota | B10: 169.3 | D10: 2) Can handle structural changes like inserting a row.
B11: 5
A12: Majestic Beaut | B12: 25
A13: MTA | B13: 102
A14: Total | D14: =IF(_xlfn.ISFORMULA(B14),_xlfn.FORMULATEXT(B14)&" is an efficient formula.","") -> 
D15: =IF(_xlfn.ISFORMULA(B15),_xlfn.FORMULATEXT(B15)&" is NOT an efficient formula.","") -> 
A17: Adding in Excel Example 2:
A18: If numbers are not next to each other, you can use SUM Function or the + symbol
A20: Invoice 12305 | B20: Amount | D20: Invoice 12332 | E20: Amount | G20: Invoice 12288 | H20: Amount
A21: Quad | B21: 45.32 | D21: Sunshine | E21: 90.43 | G21: Sunset | H21: 37.63
A22: Sunshine | B22: 50 | D22: Quad | E22: 53.13 | G22: Aspen | H22: 91.24
A23: Carlota | B23: 169.3 | D23: MTA | E23: 78.62 | G23: Quad | H23: 39.02
A24: Majestic Beaut | B24: 25 | D24: Majestic Beaut | E24: 105.7 | G24: Yanaki | H24: 106.94
A25: MTA | B25: 102 | D25: Carlota | E25: 73.7 | G25: Crested Beaut | H25: 49.38
A26: Total | D26: Total | G26: Total
A28: Total | D28: =IF(_xlfn.ISFORMULA(B28),_xlfn.FORMULATEXT(B28),"") -> 
C29: or | D29: **Okay to use + + + + or SUM(,,) when cells are not next to each other.
D30: =IF(_xlfn.ISFORMULA(B30),_xlfn.FORMULATEXT(B30),"") -> 
A32: Adding in Excel Example 3:
A33: Commutative Property of Addition allows us to add in any order
A34: You can add the numbers in any order and you still get the equivalent sum, as in:
A35: =B26&" + "&E26&" + "&H26&" = "&H26&" + "&E26&" + "&B26&" = "&SUM(B26,E26,H26)&" and so on…" -> + + = + + = 0 and so on…
D37: =IF(_xlfn.ISFORMULA(B37),_xlfn.FORMULATEXT(B37),"") -> 
D38: =IF(_xlfn.ISFORMULA(B38),_xlfn.FORMULATEXT(B38),"") -> 
A41: Adding in Excel Example 4:
A42: If ranges of cells are not next to each other, use SUM with ranges separated by commas
A44: Invoice 12305 | B44: Amount | D44: Invoice 12332 | E44: Amount | G44: Invoice 12288 | H44: Amount
A45: Quad | B45: 45.32 | D45: Sunshine | E45: 90.43 | G45: Sunset | H45: 37.63
A46: Sunshine | B46: 50 | D46: Quad | E46: 53.13 | G46: Aspen | H46: 91.24
A47: Carlota | B47: 169.3 | D47: MTA | E47: 78.62 | G47: Quad | H47: 39.02
A48: Majestic Beaut | B48: 25 | D48: Majestic Beaut | E48: 105.7 | G48: Yanaki | H48: 106.94
A49: MTA | B49: 102 | D49: Carlota | E49: 73.7 | G49: Crested Beaut | H49: 49.38
A51: Total | D51: =IF(_xlfn.ISFORMULA(B51),_xlfn.FORMULATEXT(B51),"") -> 
A53: Adding in Excel Example 5:
A54: If individual amounts must be rounded, use ROUND Function BEFORE adding
B56: Tax Rate | C56: 0.0765
A58: Name | B58: Gross Pay | C58: Tax Deduction | F58: Incorrect:
A59: Dillon J | B59: 804.02 | D59: =IF(_xlfn.ISFORMULA(C69),_xlfn.FORMULATEXT(C59),"") ->  | F59: =B59*$C$56 -> 61.50753 | G59: =IF(_xlfn.ISFORMULA(F59),_xlfn.FORMULATEXT(F59),"") -> =B59*$C$56
A60: Ian R | B60: 761.98 | F60: =B60*$C$56 -> 58.29147
A61: Sarah | B61: 1125.95 | F61: 86.135175
A62: Maria G | B62: 1070.57 | F62: 81.898605
A63: Kimberlee | B63: 922.23 | F63: 70.550595
A64: Lizaelle M | B64: 1206.76 | F64: 92.31714
A65: Chad M | B65: 1090.18 | F65: 83.39877
A66: Lisa L | B66: 1117.71 | F66: 85.504815
A67: Roy J | B67: 752.14 | F67: 57.53871
A68: Aaron D | B68: 842.64 | F68: 64.46196
D69: =IF(_xlfn.ISFORMULA(C69),_xlfn.FORMULATEXT(C69),"") ->  | F69: =ROUND(SUM(F59:F68),2) -> 741.6 | G69: =IF(_xlfn.ISFORMULA(F69),_xlfn.FORMULATEXT(F69),"") -> =ROUND(SUM(F59:F68),2)
B71: Not Necessary ==>> | C71: =ROUND(SUM(C59:C68),2) -> 0 | D71: =IF(_xlfn.ISFORMULA(C71),_xlfn.FORMULATEXT(C71),"") -> =ROUND(SUM(C59:C68),2)

Sheet Add (an)
A1: Adding in Excel Example 1:
A2: If numbers are next to each other, use SUM Function with a range of cells, rather than using the + symbol
A3: Efficient to use SUM function because:
A4: Fast.
A5: Can handle structural changes like inserting a row.
A6: Invoice 12305
A7: Product | B7: Amount
A8: Quad | B8: 45.32 | D8: Efficient to use SUM function because:
A9: Sunshine | B9: 50 | D9: 1) Fast.
A10: Carlota | B10: 169.3 | D10: 2) Can handle structural changes like inserting a row.
B11: 5
A12: Majestic Beaut | B12: 25
A13: MTA | B13: 102
A14: Total | B14: =SUM(B8:B13) -> 396.62 | D14: =IF(_xlfn.ISFORMULA(B14),_xlfn.FORMULATEXT(B14)&" is an efficient formula.","") -> =SUM(B8:B13) is an efficient formula.
B15: =B8+B9+B10+B12+B13 -> 391.62 | D15: =IF(_xlfn.ISFORMULA(B15),_xlfn.FORMULATEXT(B15)&" is NOT an efficient formula.","") -> =B8+B9+B10+B12+B13 is NOT an efficient formula.
A17: Adding in Excel Example 2:
A18: If numbers are not next to each other, you can use SUM Function or the + symbol
A20: Invoice 12305 | B20: Amount | D20: Invoice 12332 | E20: Amount | G20: Invoice 12288 | H20: Amount
A21: Quad | B21: 45.32 | D21: Sunshine | E21: 90.43 | G21: Sunset | H21: 37.63
A22: Sunshine | B22: 50 | D22: Quad | E22: 53.13 | G22: Aspen | H22: 91.24
A23: Carlota | B23: 169.3 | D23: MTA | E23: 78.62 | G23: Quad | H23: 39.02
A24: Majestic Beaut | B24: 25 | D24: Majestic Beaut | E24: 105.7 | G24: Yanaki | H24: 106.94
A25: MTA | B25: 102 | D25: Carlota | E25: 73.7 | G25: Crested Beaut | H25: 49.38
A26: Total | B26: =SUM(B21:B25) -> 391.62 | D26: Total | E26: =SUM(E21:E25) -> 401.58 | G26: Total | H26: =SUM(H21:H25) -> 324.21
A28: Total | B28: =SUM(B26,E26,H26) -> 1117.41 | D28: =IF(_xlfn.ISFORMULA(B28),_xlfn.FORMULATEXT(B28),"") -> =SUM(B26,E26,H26)
C29: or | D29: **Okay to use + + + + or SUM(,,) when cells are not next to each other.
B30: =B26+E26+H26 -> 1117.41 | D30: =IF(_xlfn.ISFORMULA(B30),_xlfn.FORMULATEXT(B30),"") -> =B26+E26+H26
A32: Adding in Excel Example 3:
A33: Commutative Property of Addition allows us to add in any order
A34: You can add the numbers in any order and you still get the equivalent sum, as in:
A35: =B26&" + "&E26&" + "&H26&" = "&H26&" + "&E26&" + "&B26&" = "&SUM(B26,E26,H26)&" and so on…" -> 391.62 + 401.58 + 324.21 = 324.21 + 401.58 + 391.62 = 1117.41 and so on…
B37: =B26+E26+H26 -> 1117.41 | D37: =IF(_xlfn.ISFORMULA(B37),_xlfn.FORMULATEXT(B37),"") -> =B26+E26+H26
B38: =H26+E26+B26 -> 1117.41 | D38: =IF(_xlfn.ISFORMULA(B38),_xlfn.FORMULATEXT(B38),"") -> =H26+E26+B26
A41: Adding in Excel Example 4:
A42: If ranges of cells are not next to each other, use SUM with ranges separated by commas
A44: Invoice 12305 | B44: Amount | D44: Invoice 12332 | E44: Amount | G44: Invoice 12288 | H44: Amount
A45: Quad | B45: 45.32 | D45: Sunshine | E45: 90.43 | G45: Sunset | H45: 37.63
A46: Sunshine | B46: 50 | D46: Quad | E46: 53.13 | G46: Aspen | H46: 91.24
A47: Carlota | B47: 169.3 | D47: MTA | E47: 78.62 | G47: Quad | H47: 39.02
A48: Majestic Beaut | B48: 25 | D48: Majestic Beaut | E48: 105.7 | G48: Yanaki | H48: 106.94
A49: MTA | B49: 102 | D49: Carlota | E49: 73.7 | G49: Crested Beaut | H49: 49.38
A51: Total | B51: =SUM(B45:B49,E45:E49,H45:H49) -> 1117.41 | D51: =IF(_xlfn.ISFORMULA(B51),_xlfn.FORMULATEXT(B51),"") -> =SUM(B45:B49,E45:E49,H45:H49)
A53: Adding in Excel Example 5:
A54: If individual amounts must be rounded, use ROUND Function BEFORE adding
B56: Tax Rate | C56: 0.0765
A58: Name | B58: Gross Pay | C58: Tax Deduction | F58: Incorrect:
A59: Dillon J | B59: 804.02 | C59: =ROUND(B59*$C$56,2) -> 61.51 | D59: =IF(_xlfn.ISFORMULA(C69),_xlfn.FORMULATEXT(C59),"") -> =ROUND(B59*$C$56,2) | F59: =B59*$C$56 -> 61.50753 | G59: =IF(_xlfn.ISFORMULA(F59),_xlfn.FORMULATEXT(F59),"") -> =B59*$C$56
A60: Ian R | B60: 761.98 | C60: =ROUND(B60*$C$56,2) -> 58.29 | F60: =B60*$C$56 -> 58.29147
A61: Sarah | B61: 1125.95 | C61: 86.14 | F61: 86.135175
A62: Maria G | B62: 1070.57 | C62: 81.9 | F62: 81.898605
A63: Kimberlee | B63: 922.23 | C63: 70.55 | F63: 70.550595
A64: Lizaelle M | B64: 1206.76 | C64: 92.32 | F64: 92.31714
A65: Chad M | B65: 1090.18 | C65: 83.4 | F65: 83.39877
A66: Lisa L | B66: 1117.71 | C66: 85.5 | F66: 85.504815
A67: Roy J | B67: 752.14 | C67: 57.54 | F67: 57.53871
A68: Aaron D | B68: 842.64 | C68: 64.46 | F68: 64.46196
C69: =SUM(C59:C68) -> 741.61 | D69: =IF(_xlfn.ISFORMULA(C69),_xlfn.FORMULATEXT(C69),"") -> =SUM(C59:C68) | F69: =ROUND(SUM(F59:F68),2) -> 741.6 | G69: =IF(_xlfn.ISFORMULA(F69),_xlfn.FORMULATEXT(F69),"") -> =ROUND(SUM(F59:F68),2)
B71: Not Necessary ==>> | C71: =ROUND(SUM(C59:C68),2) -> 741.61 | D71: =IF(_xlfn.ISFORMULA(C71),_xlfn.FORMULATEXT(C71),"") -> =ROUND(SUM(C59:C68),2)

Sheet Sub
A1: Subtracting in Excel Example 1:
A2: Use Minus Sign when there are two numbers, like when you calculate Net Income
A4: Total Revenue | B4: 5625896
A5: Total Expenses | B5: 4985623
A6: Net Income | D6: =IF(_xlfn.ISFORMULA(B6),_xlfn.FORMULATEXT(B6),"") -> 
A8: Subtracting in Excel Example 2:
A9: When you are subtracting three or more numbers, it usually is easier to add all the numbers that should be subtracted using the SUM Function, & then subtract that single SUM
H11: Not Efficient | I11: Efficient
G12: =IF(_xlfn.ISFORMULA(G14),ADDRESS(ROW(G14),COLUMN(G14),4)&": "&CHAR(10)&_xlfn.FORMULATEXT(G14),"") -> 
A13: Name | B13: Gross | C13: FICA | D13: Medicare | E13: Fed Tax | F13: Pension | G13: Total | H13: Net Pay | I13: Net Pay
A14: Sioux | B14: 754 | C14: 46.75 | D14: 10.93 | E14: 75.4 | F14: 0
A15: Abdi | B15: 822 | C15: 50.96 | D15: 11.92 | E15: 82.2 | F15: 25
A16: Gigi | B16: 911 | C16: 56.48 | D16: 13.21 | E16: 91.1 | F16: 0
A17: Imani | B17: 897 | C17: 55.61 | D17: 13.01 | E17: 89.7 | F17: 0
A18: Bob | B18: 829 | C18: 51.4 | D18: 12.02 | E18: 82.9 | F18: 75
A19: Tyrone | B19: 867 | C19: 53.75 | D19: 12.57 | E19: 86.7 | F19: 100
A20: June | B20: 939 | C20: 58.22 | D20: 13.62 | E20: 93.9 | F20: 15

Sheet Sub (an)
A1: Subtracting in Excel Example 1:
A2: Use Minus Sign when there are two numbers, like when you calculate Net Income
A4: Total Revenue | B4: 5625896
A5: Total Expenses | B5: 4985623
A6: Net Income | B6: =B4-B5 -> 640273 | D6: =IF(_xlfn.ISFORMULA(B6),_xlfn.FORMULATEXT(B6),"") -> =B4-B5
A8: Subtracting in Excel Example 2:
A9: When you are subtracting three or more numbers, it usually is easier to add all the numbers that should be subtracted using the SUM Function, & then subtract that single SUM
H11: Not Efficient | I11: Efficient
G12: =IF(_xlfn.ISFORMULA(G14),ADDRESS(ROW(G14),COLUMN(G14),4)&": "&CHAR(10)&_xlfn.FORMULATEXT(G14),"") -> G14: =SUM(C14:F14) | H12: H14: =B14-C14-D14-E14-F14 | I12: I14: =B14-G14
A13: Name | B13: Gross | C13: FICA | D13: Medicare | E13: Fed Tax | F13: Pension | G13: Total | H13: Net Pay | I13: Net Pay
A14: Sioux | B14: 754 | C14: 46.75 | D14: 10.93 | E14: 75.4 | F14: 0 | G14: =SUM(C14:F14) -> 133.08 | H14: =B14-C14-D14-E14-F14 -> 620.92 | I14: =B14-G14 -> 620.92
A15: Abdi | B15: 822 | C15: 50.96 | D15: 11.92 | E15: 82.2 | F15: 25 | G15: 170.08 | H15: 651.92 | I15: 651.92
A16: Gigi | B16: 911 | C16: 56.48 | D16: 13.21 | E16: 91.1 | F16: 0 | G16: 160.79 | H16: 750.21 | I16: 750.21
A17: Imani | B17: 897 | C17: 55.61 | D17: 13.01 | E17: 89.7 | F17: 0 | G17: 158.32 | H17: 738.68 | I17: 738.68
A18: Bob | B18: 829 | C18: 51.4 | D18: 12.02 | E18: 82.9 | F18: 75 | G18: 221.32 | H18: 607.68 | I18: 607.68
A19: Tyrone | B19: 867 | C19: 53.75 | D19: 12.57 | E19: 86.7 | F19: 100 | G19: 253.02 | H19: 613.98 | I19: 613.98
A20: June | B20: 939 | C20: 58.22 | D20: 13.62 | E20: 93.9 | F20: 15 | G20: 180.74 | H20: 758.26 | I20: 758.26

Sheet Add & Sub
A1: Add and Subtract Example 1:
A2: You can always check your work when adding and subtracting:
A4: If this is TRUE:
A5: =A6&" - "&A7&" = "&A8 -> Total Revenue - Total Expenses = Net Income
A6: Total Revenue | B6: 5625896
A7: Total Expenses | B7: 4985623
A8: Net Income | C8: =IF(_xlfn.ISFORMULA(B8),_xlfn.FORMULATEXT(B8),"") -> 
F9: Check
A10: Then this is TRUE: | F10: Your
A11: =A7&" + "&A8&" = "&A6 -> Total Expenses + Net Income = Total Revenue | F11: Work
C14: =IF(_xlfn.ISFORMULA(B14),_xlfn.FORMULATEXT(B14),"") -> 
A16: You could also check:
A17: =A18&" - "&A19&" = "&A20 -> Total Revenue - Net Income = Total Expenses
A18: Total Revenue | B18: 5625896
A19: Net Income | B19: 640273
A20: Total Expenses | C20: =IF(_xlfn.ISFORMULA(B20),_xlfn.FORMULATEXT(B20),"") -> 
A25: You could also check:
A26: =" - "&A27&" + "&A28&" = "&A29 -> - Total Expenses + Total Revenue = Net Income
A27: Total Expenses | B27: -4985623
A28: Total Revenue | B28: 5625896
A29: Net Income | B29: =B27+B28 -> 640273 | C29: =IF(_xlfn.ISFORMULA(B29),_xlfn.FORMULATEXT(B29),"") -> =B27+B28
A31: You could also check:
A32: =A33&" - "&A34&" = - "&A35 -> Net Income - Total Revenue = - Total Expenses
A33: Net Income | B33: 640273
A34: Total Revenue | B34: 5625896
A35: Total Expenses | B35: =B33-B34 -> -4985623 | C35: =IF(_xlfn.ISFORMULA(B35),_xlfn.FORMULATEXT(B35),"") -> =B33-B34
A37: You could also check:
A38: =" - "&A40&" + "&A41&" = "&A39 -> - Total Expenses + Total Revenue = Net Income
A39: Net Income | B39: 640273
A40: Total Expenses | B40: 4985623
A41: Total Revenue | B41: =B39+B40 -> 5625896 | C41: =IF(_xlfn.ISFORMULA(B41),_xlfn.FORMULATEXT(B41),"") -> =B39+B40

Sheet Add & Sub (an)
A1: Add and Subtract Example 1:
A2: You can always check your work when adding and subtracting:
A4: If this is TRUE:
A5: =A6&" - "&A7&" = "&A8 -> Total Revenue - Total Expenses = Net Income
A6: Total Revenue | B6: 5625896
A7: Total Expenses | B7: 4985623
A8: Net Income | B8: =B6-B7 -> 640273 | C8: =IF(_xlfn.ISFORMULA(B8),_xlfn.FORMULATEXT(B8),"") -> =B6-B7
F9: Check
A10: Then this is TRUE: | F10: Your
A11: =A7&" + "&A8&" = "&A6 -> Total Expenses + Net Income = Total Revenue | F11: Work
A12: Total Expenses | B12: 4985623
A13: Net Income | B13: 640273
A14: Total Revenue | B14: =B12+B13 -> 5625896 | C14: =IF(_xlfn.ISFORMULA(B14),_xlfn.FORMULATEXT(B14),"") -> =B12+B13
A16: You could also check:
A17: =A18&" - "&A19&" = "&A20 -> Total Revenue - Net Income = Total Expenses
A18: Total Revenue | B18: 5625896
A19: Net Income | B19: 640273
A20: Total Expenses | B20: =B18-B19 -> 4985623 | C20: =IF(_xlfn.ISFORMULA(B20),_xlfn.FORMULATEXT(B20),"") -> =B18-B19
A25: You could also check:
A26: =" - "&A27&" + "&A28&" = "&A29 -> - Total Expenses + Total Revenue = Net Income
A27: Total Expenses | B27: -4985623
A28: Total Revenue | B28: 5625896
A29: Net Income | B29: =B27+B28 -> 640273 | C29: =IF(_xlfn.ISFORMULA(B29),_xlfn.FORMULATEXT(B29),"") -> =B27+B28
A31: You could also check:
A32: =A33&" - "&A34&" = - "&A35 -> Net Income - Total Revenue = - Total Expenses
A33: Net Income | B33: 640273
A34: Total Revenue | B34: 5625896
A35: Total Expenses | B35: =B33-B34 -> -4985623 | C35: =IF(_xlfn.ISFORMULA(B35),_xlfn.FORMULATEXT(B35),"") -> =B33-B34
A37: You could also check:
A38: =" - "&A40&" + "&A41&" = "&A39 -> - Total Expenses + Total Revenue = Net Income
A39: Net Income | B39: 640273
A40: Total Expenses | B40: 4985623
A41: Total Revenue | B41: =B39+B40 -> 5625896 | C41: =IF(_xlfn.ISFORMULA(B41),_xlfn.FORMULATEXT(B41),"") -> =B39+B40

Sheet Multiply
A1: Multiplying in Excel Example 1:
A2: If you are multiplying two numbers use * Symbol
A4: Product | B4: Quantity | C4: Price | D4: Total
A5: Quad | B5: 85 | C5: 21.25 | F5: =IF(_xlfn.ISFORMULA(D5),_xlfn.FORMULATEXT(D5),"") -> 
A6: Carlota | B6: 108 | C6: 13.95
A7: Sunset | B7: 25 | C7: 11.95
A8: Aspen | B8: 15 | C8: 12.55
A10: Multiplying in Excel Example 2:
A11: If you are multiplying in succession three or more numbers you can use the PRODUCT Function
A13: Item | B13: Trade Discount | C13: Compliment | D13: Goal: is to multiply all three compliments
A14: 1st Trade Discount | B14: 0.5 | C14: =(1-B14) -> 0.5
A15: 2nd Trade Discount | B15: 0.1 | C15: =(1-B15) -> 0.9
A16: 3rd Trade Discount | B16: 0.06 | C16: 0.94
A17: Net Cost Equivalent | B17: =(1-B16)*(1-B15)*(1-B14) -> 0.423 | D17: =IF(_xlfn.ISFORMULA(C17),_xlfn.FORMULATEXT(C17),"") -> 
A19: Multiplying in Excel Example 3:
A20: Commutative Property of multiplication means 2* 5 = 5*2 = 10
A22: 2 | B22: 5 | E22: =A22&" * "&B22&" = "&A22*B22&" Here are ask: 'Give me "&A22&" "&B22&"s" -> 2 * 5 = 10 Here are ask: 'Give me 2 5s
A23: =B22 -> 5 | B23: =A22 -> 2 | E23: =A23&" * "&B23&" = "&A23*B23&" Here are ask: 'Give me "&A23&" "&B23&"s" -> 5 * 2 = 10 Here are ask: 'Give me 5 2s
A25: Multiplying in Excel Example 4:
A26: When multiplying in business, since we often are dealing with money, we have to consider whether or not we need to use the ROUND Function
A27: If 1) We are required to round, 2) You have extraneous decimals, & 3) We use result in subsequent formula, we MUST use ROUND
A29: But before you perform the multiplication, can you predict if you need ROUND?
A30: Yes you can.
A32: Multiplying in Excel Example 5:
A33: This is an example where the result of multiplying will NOT yield extraneous decimals.
A34: When multiplying a Whole Number by Money (Dollars & Pennies),
A35: you will never get extraneous decimals.
A37: Product | B37: Quantity | C37: Price | D37: Total
A38: Quad | B38: 85 | C38: 21.25 | F38: =IF(_xlfn.ISFORMULA(D38),_xlfn.FORMULATEXT(D38),"") -> 
A39: Carlota | B39: 108 | C39: 13.95
A40: Sunset | B40: 25 | C40: 11.95
A41: Aspen | B41: 15 | C41: 12.55
C42: Total | D42: =SUM(D38:D41) -> 0
A44: Multiplying in Excel Example 6:
A45: This is an example where the result of multiplying will CAN yield extraneous decimals.
A46: When multiplying Money (Dollars & Pennies) times a Decimal,
A47: you CAN get extraneous decimals.
A49: Product | B49: Price | C49: Discount | D49: Total
A50: Quad | B50: 210.25 | C50: 0.02 | F50: =IF(_xlfn.ISFORMULA(D50),_xlfn.FORMULATEXT(D50),"") -> 
A51: Carlota | B51: 130.95 | C51: 0.045
A52: Sunset | B52: 110.95 | C52: 0.1
A53: Aspen | B53: 120.55 | C53: 0.12
C54: Total | D54: =SUM(D50:D53) -> 0
A56: Product | B56: Price | C56: Discount | D56: Total
A57: Quad | B57: 210.25 | C57: 0.02 | D57: =B57*C57 -> 4.205 | F57: =IF(_xlfn.ISFORMULA(D57),_xlfn.FORMULATEXT(D57),"") -> =B57*C57
A58: Carlota | B58: 130.95 | C58: 0.045 | D58: =B58*C58 -> 5.89275
A59: Sunset | B59: 110.95 | C59: 0.1 | D59: 11.095
A60: Aspen | B60: 120.55 | C60: 0.12 | D60: 14.466
C61: Total | D61: =SUM(D57:D60) -> 35.65875
A63: Multiplying in Excel Example 7:
A64: If you want to be safe,
A65: Anytime you are multiplying and you are dealing with Money,
A66: you can use the ROUND Function.
A68: Product | B68: Quantity | C68: Price | D68: Total
A69: Quad | B69: 85 | C69: 21.25 | F69: =IF(_xlfn.ISFORMULA(D69),_xlfn.FORMULATEXT(D69),"") -> 
A70: Carlota | B70: 108 | C70: 13.95 | F70: MUST use ROUND:
A71: Sunset | B71: 25 | C71: 11.95 | F71: 1) We are required to round
A72: Aspen | B72: 15 | C72: 12.55 | F72: 2) You have extraneous decimals,
C73: Total | D73: =SUM(D69:D72) -> 0 | F73: or with money:
F74: you are multiplying or dividing and you might have extraneous decimals
F75: 3) We use result in subsequent formula

Sheet Multiply (an)
A1: Multiplying in Excel Example 1:
A2: If you are multiplying two numbers use * Symbol
A4: Product | B4: Quantity | C4: Price | D4: Total
A5: Quad | B5: 85 | C5: 21.25 | D5: =B5*C5 -> 1806.25 | F5: =IF(_xlfn.ISFORMULA(D5),_xlfn.FORMULATEXT(D5),"") -> =B5*C5
A6: Carlota | B6: 108 | C6: 13.95 | D6: =B6*C6 -> 1506.6
A7: Sunset | B7: 25 | C7: 11.95 | D7: 298.75
A8: Aspen | B8: 15 | C8: 12.55 | D8: 188.25
A10: Multiplying in Excel Example 2:
A11: If you are multiplying in succession three or more numbers you can use the PRODUCT Function
A13: Item | B13: Trade Discount | C13: Compliment | D13: Goal: is to multiply all three compliments
A14: 1st Trade Discount | B14: 0.5 | C14: =(1-B14) -> 0.5
A15: 2nd Trade Discount | B15: 0.1 | C15: =(1-B15) -> 0.9
A16: 3rd Trade Discount | B16: 0.06 | C16: 0.94
A17: Net Cost Equivalent | B17: =(1-B16)*(1-B15)*(1-B14) -> 0.423 | C17: =PRODUCT(C14:C16) -> 0.423 | D17: =IF(_xlfn.ISFORMULA(C17),_xlfn.FORMULATEXT(C17),"") -> =PRODUCT(C14:C16)
C18: =C14*C15*C16 -> 0.423 | D18: =C14*C15*C16
A19: Multiplying in Excel Example 3:
A20: Commutative Property of multiplication means 2* 5 = 5*2 = 10
A22: 2 | B22: 5 | C22: =A22*B22 -> 10 | E22: =A22&" * "&B22&" = "&A22*B22&" Here are ask: 'Give me "&A22&" "&B22&"s" -> 2 * 5 = 10 Here are ask: 'Give me 2 5s
A23: =B22 -> 5 | B23: =A22 -> 2 | C23: 10 | E23: =A23&" * "&B23&" = "&A23*B23&" Here are ask: 'Give me "&A23&" "&B23&"s" -> 5 * 2 = 10 Here are ask: 'Give me 5 2s
A25: Multiplying in Excel Example 4:
A26: When multiplying in business, since we often are dealing with money, we have to consider whether or not we need to use the ROUND Function
A27: If 1) We are required to round, 2) You have extraneous decimals, & 3) We use result in subsequent formula, we MUST use ROUND
A29: But before you perform the multiplication, can you predict if you need ROUND?
A30: Yes you can.
A32: Multiplying in Excel Example 5:
A33: This is an example where the result of multiplying will NOT yield extraneous decimals.
A34: When multiplying a Whole Number by Money (Dollars & Pennies),
A35: you will never get extraneous decimals.
A37: Product | B37: Quantity | C37: Price | D37: Total
A38: Quad | B38: 85 | C38: 21.25 | D38: =B38*C38 -> 1806.25 | F38: =IF(_xlfn.ISFORMULA(D38),_xlfn.FORMULATEXT(D38),"") -> =B38*C38
A39: Carlota | B39: 108 | C39: 13.95 | D39: =B39*C39 -> 1506.6
A40: Sunset | B40: 25 | C40: 11.95 | D40: 298.75
A41: Aspen | B41: 15 | C41: 12.55 | D41: =B41*C41 -> 188.25
C42: Total | D42: =SUM(D38:D41) -> 3799.85
A44: Multiplying in Excel Example 6:
A45: This is an example where the result of multiplying will CAN yield extraneous decimals.
A46: When multiplying Money (Dollars & Pennies) times a Decimal,
A47: you CAN get extraneous decimals.
A49: Product | B49: Price | C49: Discount | D49: Total
A50: Quad | B50: 210.25 | C50: 0.02 | D50: =ROUND(B50*C50,2) -> 4.21 | F50: =IF(_xlfn.ISFORMULA(D50),_xlfn.FORMULATEXT(D50),"") -> =ROUND(B50*C50,2)
A51: Carlota | B51: 130.95 | C51: 0.045 | D51: =ROUND(B51*C51,2) -> 5.89
A52: Sunset | B52: 110.95 | C52: 0.1 | D52: 11.1
A53: Aspen | B53: 120.55 | C53: 0.12 | D53: 14.47
C54: Total | D54: =SUM(D50:D53) -> 35.67
A56: Product | B56: Price | C56: Discount | D56: Total
A57: Quad | B57: 210.25 | C57: 0.02 | D57: =B57*C57 -> 4.205 | F57: =IF(_xlfn.ISFORMULA(D57),_xlfn.FORMULATEXT(D57),"") -> =B57*C57
A58: Carlota | B58: 130.95 | C58: 0.045 | D58: =B58*C58 -> 5.89275
A59: Sunset | B59: 110.95 | C59: 0.1 | D59: 11.095
A60: Aspen | B60: 120.55 | C60: 0.12 | D60: 14.466
C61: Total | D61: =SUM(D57:D60) -> 35.65875
A63: Multiplying in Excel Example 7:
A64: If you want to be safe,
A65: Anytime you are multiplying and you are dealing with Money,
A66: you can use the ROUND Function.
A68: Product | B68: Quantity | C68: Price | D68: Total
A69: Quad | B69: 85 | C69: 21.25 | D69: =ROUND(B69*C69,2) -> 1806.25 | F69: =IF(_xlfn.ISFORMULA(D69),_xlfn.FORMULATEXT(D69),"") -> =ROUND(B69*C69,2)
A70: Carlota | B70: 108 | C70: 13.95 | D70: =ROUND(B70*C70,2) -> 1506.6 | F70: MUST use ROUND:
A71: Sunset | B71: 25 | C71: 11.95 | D71: 298.75 | F71: 1) We are required to round
A72: Aspen | B72: 15 | C72: 12.55 | D72: 188.25 | F72: 2) You have extraneous decimals,
C73: Total | D73: =SUM(D69:D72) -> 3799.85 | F73: or with money:
F74: you are multiplying or dividing and you might have extraneous decimals
F75: 3) We use result in subsequent formula

Sheet Divide
A1: Dividing in Excel Example 1:
A2: If you are dividing two numbers use / Symbol
A4: Expense for Week | B4: 2955 | D4: ** Week for this business is always 7 days.
A5: Daily Expense | C5: =IF(_xlfn.ISFORMULA(B5),_xlfn.FORMULATEXT(B5),"") ->  | D5: * We have no requirement to round and use ROUND function
A7: Dividing in Excel Example 2:
A8: When you are performing division, the formula is: Numerator/Denominator = Quotient ==>> Top/Bottom = Answer
A9: When you are performing division you are asking the question: "How Many Denominators are in the Numerator?"
A11: Numerator | B11: Denominator | C11: Quotient (answer)
A12: 10 | B12: 2 | D12: =IF(_xlfn.ISFORMULA(C12),_xlfn.FORMULATEXT(C12),"") ->  | E12: ="Here we are asking: How many "&B12&"s are in "&A12&"?" -> Here we are asking: How many 2s are in 10?
A14: Dividing in Excel Example 3:
A15: ** Dividing by zero not allowed because "How many Zeroes are in a number???"
A17: Numerator | B17: Denominator | C17: Quotient (answer)
A18: 10 | D18: =IF(_xlfn.ISFORMULA(C18),_xlfn.FORMULATEXT(C18),"") ->  | E18: ="Here we are asking: How many "&B18&"s are in "&A18&"?" -> Here we are asking: How many s are in 10?
A20: Dividing in Excel Example 4:
A21: We can divide to get the integer answer with a remainder with the QUOTIENT and MOD Functions.
A23: Numerator | B23: Denominator | C23: Quotient (answer) | D23: Integer Answer | E23: Remainder Answer
A24: 9 | B24: 2
C25: =IF(_xlfn.ISFORMULA(C24),_xlfn.FORMULATEXT(C24),"") ->  | D25: =IF(_xlfn.ISFORMULA(D24),_xlfn.FORMULATEXT(D24),"") ->  | E25: =IF(_xlfn.ISFORMULA(E24),_xlfn.FORMULATEXT(E24),"") -> 
A27: Same Rounding Rules we saw for multiplying apply with division:
A28: When we MUST use ROUND:
A29: 1) We are required to round
A30: 2) The result of dividing yields extraneous decimals
A31: 3) We use result in subsequent formula
A33: Dividing in Excel Example 5:
A34: Goal of example: Calculate Grade for Class
A35: We compare Student Point Total to the Maximum Points Possible in Class.
A36: Anytime we compare a "Part of the Whole" to the "Whole", we use Division. This is called "Compare Part to Whole"
A37: * We have no requirement to round here
A39: Student Name | B39: Student Score "Part of Whole" | C39: Grade for Class "Compare Part to Whole" | E39: Max Points for Class "Whole"
A40: Imani | B40: 477 | D40: =IF(_xlfn.ISFORMULA(C40),_xlfn.FORMULATEXT(C40),"") ->  | E40: 500
A41: Gigi | B41: 360
A42: Tyrone | B42: 500 | E42: * We have no requirement to round and use ROUND function
A43: Sioux | B43: 396
A44: Bob | B44: 173
A45: Abdi | B45: 454
A47: Dividing in Excel Example 6:
A48: Goal of example: Calculate Monthly Insurance Expense for each policy, then add all monthly expenses to get total.
A49: This situation meets the requirement to round.
A51: Policy Number | B51: Annual Insurance Expenses | C51: Monthly Expense | F51: Monthly Expense
A52: 0121.NGXDS-2948 | B52: 2434.65 | D52: =IF(_xlfn.ISFORMULA(C55),_xlfn.FORMULATEXT(C52),"") ->  | F52: =B52/12 -> 202.8875 | G52: =IF(_xlfn.ISFORMULA(F55),_xlfn.FORMULATEXT(F52),"") -> =B52/12
A53: 0171.TOUKP-2257 | B53: 3940.51 | F53: =B53/12 -> 328.3758333
A54: 0006.TPZUP-1156 | B54: 3206.84 | F54: =B54/12 -> 267.2366667
A55: 0107.PMQGS-1845 | B55: 1943.33 | F55: =B55/12 -> 161.9441667
B56: Total | C56: =SUM(C52:C55) -> 0 | E56: Total | F56: =SUM(F52:F55) -> 960.4441667

Sheet Divide (an)
A1: Dividing in Excel Example 1:
A2: If you are dividing two numbers use / Symbol
A4: Expense for Week | B4: 2955 | D4: ** Week for this business is always 7 days.
A5: Daily Expense | B5: =B4/7 -> 422.1428571 | C5: =IF(_xlfn.ISFORMULA(B5),_xlfn.FORMULATEXT(B5),"") -> =B4/7 | D5: * We have no requirement to round and use ROUND function
A7: Dividing in Excel Example 2:
A8: When you are performing division, the formula is: Numerator/Denominator = Quotient ==>> Top/Bottom = Answer
A9: When you are performing division you are asking the question: "How Many Denominators are in the Numerator?"
A11: Numerator | B11: Denominator | C11: Quotient (answer)
A12: 10 | B12: 2 | C12: =A12/B12 -> 5 | D12: =IF(_xlfn.ISFORMULA(C12),_xlfn.FORMULATEXT(C12),"") -> =A12/B12 | E12: ="Here we are asking: How many "&B12&"s are in "&A12&"?" -> Here we are asking: How many 2s are in 10?
A14: Dividing in Excel Example 3:
A15: ** Dividing by zero not allowed because "How many Zeroes are in a number???"
A17: Numerator | B17: Denominator | C17: Quotient (answer)
A18: 10 | C18: =A18/B18 ->  | D18: =IF(_xlfn.ISFORMULA(C18),_xlfn.FORMULATEXT(C18),"") -> =A18/B18 | E18: ="Here we are asking: How many "&B18&"s are in "&A18&"?" -> Here we are asking: How many s are in 10?
A20: Dividing in Excel Example 4:
A21: We can divide to get the integer answer with a remainder with the QUOTIENT and MOD Functions.
A23: Numerator | B23: Denominator | C23: Quotient (answer) | D23: Integer Answer | E23: Remainder Answer
A24: 9 | B24: 2 | C24: =A24/B24 -> 4.5 | D24: =QUOTIENT(A24,B24) -> 4 | E24: =MOD(A24,B24) -> 1
C25: =IF(_xlfn.ISFORMULA(C24),_xlfn.FORMULATEXT(C24),"") -> =A24/B24 | D25: =IF(_xlfn.ISFORMULA(D24),_xlfn.FORMULATEXT(D24),"") -> =QUOTIENT(A24,B24) | E25: =IF(_xlfn.ISFORMULA(E24),_xlfn.FORMULATEXT(E24),"") -> =MOD(A24,B24)
A27: Same Rounding Rules we saw for multiplying apply with division:
A28: When we MUST use ROUND:
A29: 1) We are required to round
A30: 2) The result of dividing yields extraneous decimals
A31: 3) We use result in subsequent formula
A33: Dividing in Excel Example 5:
A34: Goal of example: Calculate Grade for Class
A35: We compare Student Point Total to the Maximum Points Possible in Class.
A36: Anytime we compare a "Part of the Whole" to the "Whole", we use Division. This is called "Compare Part to Whole"
A37: * We have no requirement to round here
A39: Student Name | B39: Student Score "Part of Whole" | C39: Grade for Class "Compare Part to Whole" | E39: Max Points for Class "Whole"
A40: Imani | B40: 477 | C40: =B40/$E$40 -> 0.954 | D40: =IF(_xlfn.ISFORMULA(C40),_xlfn.FORMULATEXT(C40),"") -> =B40/$E$40 | E40: 500
A41: Gigi | B41: 360 | C41: =B41/$E$40 -> 0.72
A42: Tyrone | B42: 500 | C42: 1 | E42: * We have no requirement to round and use ROUND function
A43: Sioux | B43: 396 | C43: 0.792
A44: Bob | B44: 173 | C44: 0.346
A45: Abdi | B45: 454 | C45: 0.908
A47: Dividing in Excel Example 6:
A48: Goal of example: Calculate Monthly Insurance Expense for each policy, then add all monthly expenses to get total.
A49: This situation meets the requirement to round.
A51: Policy Number | B51: Annual Insurance Expenses | C51: Monthly Expense | F51: Monthly Expense
A52: 0121.NGXDS-2948 | B52: 2434.65 | C52: =ROUND(B52/12,2) -> 202.89 | D52: =IF(_xlfn.ISFORMULA(C55),_xlfn.FORMULATEXT(C52),"") -> =ROUND(B52/12,2) | F52: =B52/12 -> 202.8875 | G52: =IF(_xlfn.ISFORMULA(F55),_xlfn.FORMULATEXT(F52),"") -> =B52/12
A53: 0171.TOUKP-2257 | B53: 3940.51 | C53: =ROUND(B53/12,2) -> 328.38 | F53: =B53/12 -> 328.3758333
A54: 0006.TPZUP-1156 | B54: 3206.84 | C54: 267.24 | F54: =B54/12 -> 267.2366667
A55: 0107.PMQGS-1845 | B55: 1943.33 | C55: 161.94 | F55: =B55/12 -> 161.9441667
B56: Total | C56: =SUM(C52:C55) -> 960.45 | E56: Total | F56: =SUM(F52:F55) -> 960.4441667

Sheet Mult & Div
A1: Multiply and Divide Example 1:
A2: You can always check your work when Multiplying or Dividing:
A3: **by using the non-rounded original numbers
A5: If this is TRUE:
A6: =A9&" * "&A10&" = "&A11 -> Quantity * Price = Total
A7: =B9&" * "&B10&" = "&B9*B10 -> 85 * 21.255 = 1806.675
A8: Product | B8: Quad
A9: Quantity | B9: 85
A10: Price | B10: 21.255
A11: Total | B11: =B9*B10 -> 1806.675 | C11: =IF(_xlfn.ISFORMULA(B11),_xlfn.FORMULATEXT(B11),"") -> =B9*B10
A13: Then this is TRUE: | F13: Check
A14: =A17&" / "&A18&" = "&A19 -> Total / Price = Quantity | F14: Your
A15: =B17&" / "&B18&" = "&B17/B18 ->  | F15: Work
A16: Product | B16: Quad
A17: Total
A18: Price
A19: Quantity | C19: =IF(_xlfn.ISFORMULA(B19),_xlfn.FORMULATEXT(B19),"") -> 
A21: You could also check:
A22: =A25&" / "&A26&" = "&A27 -> Total / Quantity = Price
A23: =B25&" / "&B26&" = "&B25/B26 -> 1806.675 / 85 = 21.255
A24: Product | B24: Quad
A25: Total | B25: 1806.675
A26: Quantity | B26: 85
A27: Price | B27: =B25/B26 -> 21.255

Sheet Mult & Div (an)
A1: Multiply and Divide Example 1:
A2: You can always check your work when Multiplying or Dividing:
A3: **by using the non-rounded original numbers
A5: If this is TRUE:
A6: =A9&" * "&A10&" = "&A11 -> Quantity * Price = Total
A7: =B9&" * "&B10&" = "&B9*B10 -> 85 * 21.255 = 1806.675
A8: Product | B8: Quad
A9: Quantity | B9: 85
A10: Price | B10: 21.255
A11: Total | B11: =B9*B10 -> 1806.675 | C11: =IF(_xlfn.ISFORMULA(B11),_xlfn.FORMULATEXT(B11),"") -> =B9*B10
A13: Then this is TRUE: | F13: Check
A14: =A17&" / "&A18&" = "&A19 -> Total / Price = Quantity | F14: Your
A15: =B17&" / "&B18&" = "&B17/B18 -> 1806.675 / 21.255 = 85 | F15: Work
A16: Product | B16: Quad
A17: Total | B17: 1806.675
A18: Price | B18: 21.255
A19: Quantity | B19: =B17/B18 -> 85 | C19: =IF(_xlfn.ISFORMULA(B19),_xlfn.FORMULATEXT(B19),"") -> =B17/B18
A21: You could also check:
A22: =A25&" / "&A26&" = "&A27 -> Total / Quantity = Price
A23: =B25&" / "&B26&" = "&B25/B26 -> 1806.675 / 85 = 21.255
A24: Product | B24: Quad
A25: Total | B25: 1806.675
A26: Quantity | B26: 85
A27: Price | B27: =B25/B26 -> 21.255

Sheet Exponents
A1: Exponent Example 1:
A2: Exponents are convenient way to multiply when you have to
A3: multiply the same number over and over!
A4: In Excel the operator is caret: ^ (Shift + 6)
A6: 2 | B6: . | C6: What is the number we are multiplying?
A7: 2 | C7: 2 | D7: Base
A8: 2 | B8: . | C8: How many times did we have to multiply it?
A9: 2 | C9: 6 | D9: Exponent
A10: 2
A11: 2 | C11: 26
D12: =IF(_xlfn.ISFORMULA(C12),_xlfn.FORMULATEXT(C12),"") -> 
A14: Steps to type a label that shows 26 :
A15: 1) Type a lead apostrophe (so number can be considered text)
A16: 2) Type Base and Exponent: '26
A17: 3) Highlight Exponent
A18: 4) Ctrl + 1 to open Format Cells Dialog Box, then on Font Tab, check Superscript checkbox
A20: Exponent Example 2:
A21: In Finance we often times have to use Exponents.
A22: Famous Finance Formula for Future Value of Lump Sum Investment with Annual Rate:
A23: FV = (1 + AnnualRate)^Years*AmountInvested
A25: Amount Deposited in Bank | B25: 2500
A26: Years Left in Bank | B26: 10
A27: Annual Interest Rate | B27: 0.045 | D27: FV = (1 + AnnualRate)^Years*AmountInvested
A28: Future Value | D28: ="FV = (1+"&B27&")^"&B26&"*"&B25 -> FV = (1+0.045)^10*2500
D29: =IF(_xlfn.ISFORMULA(B28),+"FV "&_xlfn.FORMULATEXT(B28),"") -> 

Sheet Exponents (an)
A1: Exponent Example 1:
A2: Exponents are convenient way to multiply when you have to
A3: multiply the same number over and over!
A4: In Excel the operator is caret: ^ (Shift + 6)
A6: 2 | B6: . | C6: What is the number we are multiplying?
A7: 2 | C7: 2 | D7: Base
A8: 2 | B8: . | C8: How many times did we have to multiply it?
A9: 2 | C9: 6 | D9: Exponent
A10: 2
A11: 2 | C11: 26 | E11: 26
A12: =PRODUCT(A6:A11) -> 64 | C12: =C7^C9 -> 64 | D12: =IF(_xlfn.ISFORMULA(C12),_xlfn.FORMULATEXT(C12),"") -> =C7^C9
A14: Steps to type a label that shows 26 :
A15: 1) Type a lead apostrophe (so number can be considered text)
A16: 2) Type Base and Exponent: '26
A17: 3) Highlight Exponent
A18: 4) Ctrl + 1 to open Format Cells Dialog Box, then on Font Tab, check Superscript checkbox
A20: Exponent Example 2:
A21: In Finance we often times have to use Exponents.
A22: Famous Finance Formula for Future Value of Lump Sum Investment with Annual Rate:
A23: FV = (1 + AnnualRate)^Years*AmountInvested
A25: Amount Deposited in Bank | B25: 2500
A26: Years Left in Bank | B26: 10
A27: Annual Interest Rate | B27: 0.045 | D27: FV = (1 + AnnualRate)^Years*AmountInvested
A28: Future Value | B28: =(1+B27)^B26*B25 -> 3882.423554 | D28: ="FV = (1+"&B27&")^"&B26&"*"&B25 -> FV = (1+0.045)^10*2500
D29: =IF(_xlfn.ISFORMULA(B28),+"FV "&_xlfn.FORMULATEXT(B28),"") -> FV =(1+B27)^B26*B25
A30: Future Value | B30: =FV(B27,B26,,-B25) -> 3882.423554
B31: =IF(_xlfn.ISFORMULA(B30),+"FV "&_xlfn.FORMULATEXT(B30),"") -> FV =FV(B27,B26,,-B25)

Sheet ROUND Hint
B1: Whole Numbers: numbers to the left of the decimal point. Uses the ten one-place digits: 0,1,2,3,4,5,6,7,8,9. Use a comma every third place. | Q1: The word "and" goes here when you write the words. | R1: Decimals: numbers to the right of the decimal point - representing parts of a whole - "a whole" is the number 1 and the "part" is a number between 1 and 0.
B2: Trillions | E2: Billions | H2: Millions | K2: Thousands | N2: Ones | Q2: "AND"
B3: ="Hundred "&B2 -> Hundred Trillions | C3: ="Ten "&B2 -> Ten Trillions | D3: =B2 -> Trillions | E3: ="Hundred "&E2 -> Hundred Billions | F3: ="Ten "&E2 -> Ten Billions | G3: =E2 -> Billions | H3: ="Hundred "&H2 -> Hundred Millions | I3: ="Ten "&H2 -> Ten Millions | J3: =H2 -> Millions | K3: ="Hundred "&K2 -> Hundred Thousands | L3: ="Ten "&K2 -> Ten Thousands | M3: =K2 -> Thousands | N3: Hundreds | O3: Tens | P3: Ones | Q3: Decimal Point (and) | R3: Tenths | S3: Hundredths | T3: Thousandths | U3: Ten-Thousandths | V3: Hundred-Thousandths | W3: Millionths
E4: 4 | F4: 5 | G4: 6 | H4: 7 | I4: 5 | J4: 8 | K4: 4 | L4: 5 | M4: 2 | N4: 1 | O4: 1 | P4: 9 | Q4: ■ | R4: 1 | S4: 5 | T4: 5
A5: 2nd Argument for ROUND | E5: -11 | F5: -10 | G5: -9 | H5: -8 | I5: -7 | J5: -6 | K5: -5 | L5: -4 | M5: -3 | N5: -2 | O5: -1 | P5: 0 | R5: 1 | S5: 2 | T5: 3 | U5: 4 | V5: 5 | W5: 6

Sheet ROUND Examples
A1: Rounding Example 1:
A2: Round to the Penny when you are dealing with dollars and cents
A3: ROUND(Formula,2)
A5: Invoice | B5: Amount | C5: Discount Rate | D5: Discount Amount | G5: Incorrect:
A6: 12254 | B6: 1099.11 | C6: 0.01 | D6: =ROUND(B6*C6,2) -> 10.99 | E6: =IF(_xlfn.ISFORMULA(D9),_xlfn.FORMULATEXT(D6),"") -> =ROUND(B6*C6,2) | G6: =B6*C6 -> 10.9911 | H6: =IF(_xlfn.ISFORMULA(G6),_xlfn.FORMULATEXT(G6),"") -> =B6*C6
A7: 12255 | B7: 367.46 | C7: 0.015 | D7: =ROUND(B7*C7,2) -> 5.51 | G7: 5.5119
A8: 12256 | B8: 712.35 | C8: 0.03 | D8: 21.37 | G8: 21.3705
A9: 12257 | B9: 655.16 | C9: 0.02 | D9: =ROUND(B9*C9,2) -> 13.1 | G9: 13.1032
C10: Total | D10: =SUM(D6:D9) -> 50.97 | G10: =SUM(G6:G9) -> 50.9767
A12: Rounding Example 2:
A13: Round to the Dollar is required for a few tax calculations, for example Federal Income Tax Forms.
A14: ROUND(Formula,0)
A16: Name | B16: Taxable Amount | C16: Tax Rate | D16: Paid Tax | G16: Incorrect:
A17: Sioux | B17: 48661.43 | C17: 0.125 | E17: =IF(_xlfn.ISFORMULA(D20),_xlfn.FORMULATEXT(D17),"") ->  | G17: =B17*C17 -> 6082.67875 | H17: =IF(_xlfn.ISFORMULA(G17),_xlfn.FORMULATEXT(G17),"") -> =B17*C17
A18: Imani | B18: 52861.1 | C18: 0.13 | G18: =B18*C18 -> 6871.943
A19: Bob | B19: 51487.39 | C19: 0.125 | G19: 6435.92375
A20: Gigi | B20: 48436.34 | C20: 0.13 | G20: 6296.7242
C21: Total | D21: =SUM(D17:D20) -> 0 | G21: =SUM(G17:G20) -> 25687.2697
A23: Rounding Example 3:
A24: Round to the thousandths position because the syllabus states that that is required
A25: ROUND(Formula,3)
A27: Max Possible Points | C27: 500
A29: Student | B29: Class Score | C29: Grade | G29: Grade
A30: Pham | B30: 401.7 | D30: =IF(_xlfn.ISFORMULA(C33),_xlfn.FORMULATEXT(C30),"") ->  | G30: =B30/$C$27 -> 0.8034 | H30: =IF(_xlfn.ISFORMULA(G30),_xlfn.FORMULATEXT(G30),"") -> =B30/$C$27
A31: Miki | B31: 359.1 | G31: =B31/$C$27 -> 0.7182
A32: Abdi | B32: 386.7 | G32: 0.7734
A33: Phil | B33: 389.5 | G33: 0.779
B34: Average | D34: =IF(_xlfn.ISFORMULA(C34),_xlfn.FORMULATEXT(C34),"") ->  | G34: =AVERAGE(G30:G33) -> 0.7685
A36: Rounding Example 4:
A37: Round to the thousands position, sometimes you need to do this when creating a Financial Report.
A38: ROUND(Formula,-3)
A40: Company | B40: Cash Balance | C40: Round to Thousands, Divide by 1000
A41: GOOG | B41: 48088124879 | E41: =IF(_xlfn.ISFORMULA(C44),_xlfn.FORMULATEXT(C41),"") -> 
A42: MSFT | B42: 11324045674
A43: YHOO | B43: 1526427125
A44: FB | B44: 18434320789

Sheet ROUND Examples (an)
A1: Rounding Example 1:
A2: Round to the Penny when you are dealing with dollars and cents
A3: ROUND(Formula,2)
A5: Invoice | B5: Amount | C5: Discount Rate | D5: Discount Amount | G5: Incorrect:
A6: 12254 | B6: 1099.11 | C6: 0.01 | D6: =ROUND(C6*B6,2) -> 10.99 | E6: =IF(_xlfn.ISFORMULA(D9),_xlfn.FORMULATEXT(D6),"") -> =ROUND(C6*B6,2) | G6: =B6*C6 -> 10.9911 | H6: =IF(_xlfn.ISFORMULA(G6),_xlfn.FORMULATEXT(G6),"") -> =B6*C6
A7: 12255 | B7: 367.46 | C7: 0.015 | D7: =ROUND(C7*B7,2) -> 5.51 | G7: 5.5119
A8: 12256 | B8: 712.35 | C8: 0.03 | D8: 21.37 | G8: 21.3705
A9: 12257 | B9: 655.16 | C9: 0.02 | D9: 13.1 | G9: 13.1032
C10: Total | D10: =SUM(D6:D9) -> 50.97 | G10: =SUM(G6:G9) -> 50.9767
A12: Rounding Example 2:
A13: Round to the Dollar is required for a few tax calculations, for example Federal Income Tax Forms.
A14: ROUND(Formula,0)
A16: Name | B16: Taxable Amount | C16: Tax Rate | D16: Paid Tax | G16: Incorrect:
A17: Sioux | B17: 48661.43 | C17: 0.125 | D17: =ROUND(C17*B17,0) -> 6083 | E17: =IF(_xlfn.ISFORMULA(D20),_xlfn.FORMULATEXT(D17),"") -> =ROUND(C17*B17,0) | G17: =B17*C17 -> 6082.67875 | H17: =IF(_xlfn.ISFORMULA(G17),_xlfn.FORMULATEXT(G17),"") -> =B17*C17
A18: Imani | B18: 52861.1 | C18: 0.13 | D18: =ROUND(C18*B18,0) -> 6872 | G18: =B18*C18 -> 6871.943
A19: Bob | B19: 51487.39 | C19: 0.125 | D19: 6436 | G19: 6435.92375
A20: Gigi | B20: 48436.34 | C20: 0.13 | D20: 6297 | G20: 6296.7242
C21: Total | D21: =SUM(D17:D20) -> 25688 | G21: =SUM(G17:G20) -> 25687.2697
A23: Rounding Example 3:
A24: Round to the thousandths position because the syllabus states that that is required
A25: ROUND(Formula,3)
A27: Max Possible Points | C27: 500
A29: Student | B29: Class Score | C29: Grade | G29: Grade
A30: Pham | B30: 401.7 | C30: =ROUND(B30/$C$27,3) -> 0.803 | D30: =IF(_xlfn.ISFORMULA(C33),_xlfn.FORMULATEXT(C30),"") -> =ROUND(B30/$C$27,3) | G30: =B30/$C$27 -> 0.8034 | H30: =IF(_xlfn.ISFORMULA(G30),_xlfn.FORMULATEXT(G30),"") -> =B30/$C$27
A31: Miki | B31: 359.1 | C31: =ROUND(B31/$C$27,3) -> 0.718 | G31: =B31/$C$27 -> 0.7182
A32: Abdi | B32: 386.7 | C32: 0.773 | G32: 0.7734
A33: Phil | B33: 389.5 | C33: 0.779 | G33: 0.779
B34: Average | C34: =ROUND(AVERAGE(C30:C33),3) -> 0.768 | D34: =IF(_xlfn.ISFORMULA(C34),_xlfn.FORMULATEXT(C34),"") -> =ROUND(AVERAGE(C30:C33),3) | G34: =AVERAGE(G30:G33) -> 0.7685
A36: Rounding Example 4:
A37: Round to the thousands position, sometimes you need to do this when creating a Financial Report.
A38: ROUND(Formula,-3)
A40: Company | B40: Cash Balance | C40: Round to Thousands, Divide by 1000
A41: GOOG | B41: 48088124879 | C41: =ROUND(B41,-3)/1000 -> 48088125 | E41: =IF(_xlfn.ISFORMULA(C44),_xlfn.FORMULATEXT(C41),"") -> =ROUND(B41,-3)/1000
A42: MSFT | B42: 11324045674 | C42: =ROUND(B42,-3)/1000 -> 11324046
A43: YHOO | B43: 1526427125 | C43: 1526427
A44: FB | B44: 18434320789 | C44: 18434321

Sheet HW ==>>

Sheet HW(1)
A1: The numbers below where exported from an accounting system.
A2: Round the numbers to the get the correct money amount
A5: Exported Numbers from Accounting System | B5: Rounded To Penny | E5: Exported Numbers from Accounting System | F5: Rounded To Dollar
A6: 5.056 | E6: 8.58
A7: 375.003 | E7: 26.49
A8: 42.137 | E8: 0.57
A9: 0.008 | E9: 0.49
A10: 1.995 | E10: 299.76
A11: 16.519 | E11: 12836.38
A12: 382.005 | E12: 268.72
A13: 0.846 | E13: 395.18
A14: 1.5002 | E14: 664.66
A15: 28.994 | E15: 4699.62
A16: 32.493 | E16: 11285.13
A17: 12802.965 | E17: 378.59
A18: 0.0015 | E18: 233.86
A19: 7.6009 | E19: 722.38
A20: 752.798 | E20: 8263.47

Sheet HW(1an)
A1: The numbers below where exported from an accounting system.
A2: Round the numbers to the get the correct money amount
A5: Exported Numbers from Accounting System | B5: Rounded To Penny | E5: Exported Numbers from Accounting System | F5: Rounded To Dollar
A6: 5.056 | B6: =ROUND(A6,2) -> 5.06 | E6: 8.58 | F6: =ROUND(E6,0) -> 9
A7: 375.003 | B7: =ROUND(A7,2) -> 375 | E7: 26.49 | F7: 26
A8: 42.137 | B8: 42.14 | E8: 0.57 | F8: 1
A9: 0.008 | B9: 0.01 | E9: 0.49 | F9: 0
A10: 1.995 | B10: 2 | E10: 299.76 | F10: 300
A11: 16.519 | B11: 16.52 | E11: 12836.38 | F11: 12836
A12: 382.005 | B12: 382.01 | E12: 268.72 | F12: 269
A13: 0.846 | B13: 0.85 | E13: 395.18 | F13: 395
A14: 1.5002 | B14: 1.5 | E14: 664.66 | F14: 665
A15: 28.994 | B15: 28.99 | E15: 4699.62 | F15: 4700
A16: 32.493 | B16: 32.49 | E16: 11285.13 | F16: 11285
A17: 12802.965 | B17: 12802.97 | E17: 378.59 | F17: 379
A18: 0.0015 | B18: 0 | E18: 233.86 | F18: 234
A19: 7.6009 | B19: 7.6 | E19: 722.38 | F19: 722
A20: 752.798 | B20: 752.8 | E20: 8263.47 | F20: 8263

Sheet HW(2)
A1: Below are two checks.
A2: On the Amount Line (cell C12 & C27), write the check amount in words.
A7: Your Name Accounting | D7: No. | E7: 15874
A8: 15877 104th Ave. S. | E8: 66-420
A9: Seattle, WA 98101 | E9: 1210
D10: Date | E10: =TODAY() -> 2018-01-13
B11: PAY TO THE ORDER OF: | C11: Trucks R Us | D11: Amount | E11: 15245.5
B12: Amount | E12: Dollars
A14: Boeing Employees Credit Union
A15: 12770 Gateway Dr.
A16: Tukwila, WA 98168
B17: By | C17: Your Name
A18: Memo | B18: Purchase Used Truck
B19: l▪▪ 1210 ▪▪▪ 0420 l▪▪ 6005655960 ll■ 15874
A22: Your Name Accounting | D22: No. | E22: 15875
A23: 15877 104th Ave. S. | E23: 66-420
A24: Seattle, WA 98101 | E24: 1210
D25: Date | E25: =TODAY() -> 2018-01-13
B26: PAY TO THE ORDER OF: | C26: Office Depot | D26: Amount | E26: 278.99
B27: Amount | E27: Dollars
A29: Boeing Employees Credit Union
A30: 12770 Gateway Dr.
A31: Tukwila, WA 98168
B32: By | C32: Your Name
A33: Memo | B33: Office Supllies
B34: l▪▪ 1210 ▪▪▪ 0420 l▪▪ 6005655960 ll■ 15875

Sheet HW(2an)
A1: Below are two checks.
A2: On the Amount Line (cell C12 & C27), write the check amount in words.
A7: Your Name Accounting | D7: No. | E7: 15874
A8: 15877 104th Ave. S. | E8: 66-420
A9: Seattle, WA 98101 | E9: 1210
D10: Date | E10: =TODAY() -> 2018-01-13
B11: PAY TO THE ORDER OF: | C11: Trucks R Us | D11: Amount | E11: 15245.5 | H11: =SpellNumber(E11) -> Fifteen Thousand Two Hundred Forty Five Dollars and Fifty Cents
B12: Amount | C12: Fifteen thousand, Two Hundred Forty Five & Fifty Cents | E12: Dollars
A14: Boeing Employees Credit Union
A15: 12770 Gateway Dr.
A16: Tukwila, WA 98168
B17: By | C17: Your Name
A18: Memo | B18: Purchase Used Truck
B19: l▪▪ 1210 ▪▪▪ 0420 l▪▪ 6005655960 ll■ 15874
A22: Your Name Accounting | D22: No. | E22: 15875
A23: 15877 104th Ave. S. | E23: 66-420
A24: Seattle, WA 98101 | E24: 1210
D25: Date | E25: =TODAY() -> 2018-01-13
B26: PAY TO THE ORDER OF: | C26: Office Depot | D26: Amount | E26: 278.99 | H26: =SpellNumber(E26) -> Two Hundred Seventy Eight Dollars and Ninety Nine Cents
B27: Amount | C27: Two Hundred Seventy Eight & Ninety Nine Cents | E27: Dollars
A29: Boeing Employees Credit Union
A30: 12770 Gateway Dr.
A31: Tukwila, WA 98168
B32: By | C32: Your Name
A33: Memo | B33: Office Supllies
B34: l▪▪ 1210 ▪▪▪ 0420 l▪▪ 6005655960 ll■ 15875

Sheet HW(3)
A1: For the below Product / Monthly Sales Report, add the totals in the green cells.
A5: Product | B5: Jan | C5: Feb | D5: Mar | E5: Apr | F5: May | G5: Jun | H5: Totals
A6: Sunset | B6: 49802 | C6: 36911 | D6: 47851 | E6: 54732 | F6: 29852 | G6: 74119
A7: Quad | B7: 86154 | C7: 72908 | D7: 31552 | E7: 74944 | F7: 85532 | G7: 36705
A8: Aspen | B8: 59854 | C8: 85119 | D8: 87914 | E8: 45812 | F8: 56314 | G8: 91856
A9: Yanaki | B9: 73951 | C9: 72564 | D9: 39615 | E9: 71099 | F9: 72918 | G9: 42953
A10: Totals

Sheet HW(3an)
A1: For the below Product / Monthly Sales Report, add the totals in the green cells.
A5: Product | B5: Jan | C5: Feb | D5: Mar | E5: Apr | F5: May | G5: Jun | H5: Totals
A6: Sunset | B6: 49802 | C6: 36911 | D6: 47851 | E6: 54732 | F6: 29852 | G6: 74119 | H6: =SUM(B6:G6) -> 293267
A7: Quad | B7: 86154 | C7: 72908 | D7: 31552 | E7: 74944 | F7: 85532 | G7: 36705 | H7: =SUM(B7:G7) -> 387795
A8: Aspen | B8: 59854 | C8: 85119 | D8: 87914 | E8: 45812 | F8: 56314 | G8: 91856 | H8: =SUM(B8:G8) -> 426869
A9: Yanaki | B9: 73951 | C9: 72564 | D9: 39615 | E9: 71099 | F9: 72918 | G9: 42953 | H9: =SUM(B9:G9) -> 373100
A10: Totals | B10: =SUM(B6:B9) -> 269761 | C10: 267502 | D10: 206932 | E10: 246587 | F10: 244616 | G10: 245633 | H10: =SUM(B10:G10) -> 1481031

Sheet HW(4)
A1: In Cell B3, add all the sales numbers from both tables.
A3: Total
A5: Product | B5: Jan | C5: Feb | D5: Mar | E5: Apr | F5: May | G5: Jun
A6: Sunset | B6: 49802 | C6: 36911 | D6: 47851 | E6: 54732 | F6: 29852 | G6: 74119
A7: Quad | B7: 86154 | C7: 72908 | D7: 31552 | E7: 74944 | F7: 85532 | G7: 36705
A8: Aspen | B8: 59854 | C8: 85119 | D8: 87914 | E8: 45812 | F8: 56314 | G8: 91856
A9: Yanaki | B9: 73951 | C9: 72564 | D9: 39615 | E9: 71099 | F9: 72918 | G9: 42953
A12: Product | B12: Jan | C12: Feb | D12: Mar | E12: Apr | F12: May | G12: Jun
A13: Crested Beaut | B13: 33113.26 | C13: 103769.72 | D13: 31864.08 | E13: 86376.04 | F13: 99241.71 | G13: 96016.81
A14: Majestic Beaut | B14: 24679.7 | C14: 30866.19 | D14: 70382.56 | E14: 58145.55 | F14: 100387.69 | G14: 41387.04
A15: Flattop | B15: 80141.04 | C15: 62983.73 | D15: 51419.37 | E15: 54251.14 | F15: 45481.8 | G15: 26490.3
A16: Sunshine | B16: 90872.15 | C16: 59902.81 | D16: 22279.86 | E16: 114394.98 | F16: 92178.04 | G16: 53263.01

Sheet HW(4an)
A1: In Cell B3, add all the sales numbers from both tables.
A3: Total | B3: =SUM(B6:G9,B13:G16) -> 3010919.58
A5: Product | B5: Jan | C5: Feb | D5: Mar | E5: Apr | F5: May | G5: Jun
A6: Sunset | B6: 49802 | C6: 36911 | D6: 47851 | E6: 54732 | F6: 29852 | G6: 74119
A7: Quad | B7: 86154 | C7: 72908 | D7: 31552 | E7: 74944 | F7: 85532 | G7: 36705
A8: Aspen | B8: 59854 | C8: 85119 | D8: 87914 | E8: 45812 | F8: 56314 | G8: 91856
A9: Yanaki | B9: 73951 | C9: 72564 | D9: 39615 | E9: 71099 | F9: 72918 | G9: 42953
A12: Product | B12: Jan | C12: Feb | D12: Mar | E12: Apr | F12: May | G12: Jun
A13: Crested Beaut | B13: 33113.26 | C13: 103769.72 | D13: 31864.08 | E13: 86376.04 | F13: 99241.71 | G13: 96016.81
A14: Majestic Beaut | B14: 24679.7 | C14: 30866.19 | D14: 70382.56 | E14: 58145.55 | F14: 100387.69 | G14: 41387.04
A15: Flattop | B15: 80141.04 | C15: 62983.73 | D15: 51419.37 | E15: 54251.14 | F15: 45481.8 | G15: 26490.3
A16: Sunshine | B16: 90872.15 | C16: 59902.81 | D16: 22279.86 | E16: 114394.98 | F16: 92178.04 | G16: 53263.01

Sheet HW(5)
A1: ="In the Total Column add just the "&C7&", "&D7&", "&E7&" and "&F7&" expenses for each employee." -> In the Total Column add just the FICA, Medicare, Fed Tax and Pension expenses for each employee.
A2: Then in the Net Pay Column, calculate Net Pay in an efficient way (Net Pay is Gross pay minus all the expenses).
A7: Name | B7: Gross | C7: FICA | D7: Medicare | E7: Fed Tax | F7: Pension | G7: Total | H7: Net Pay
A8: Sioux | B8: 754 | C8: 46.75 | D8: 10.93 | E8: 75.4 | F8: 0
A9: Abdi | B9: 822 | C9: 50.96 | D9: 11.92 | E9: 82.2 | F9: 25
A10: Gigi | B10: 911 | C10: 56.48 | D10: 13.21 | E10: 91.1 | F10: 0
A11: Imani | B11: 897 | C11: 55.61 | D11: 13.01 | E11: 89.7 | F11: 0
A12: Bob | B12: 829 | C12: 51.4 | D12: 12.02 | E12: 82.9 | F12: 75
A13: Tyrone | B13: 867 | C13: 53.75 | D13: 12.57 | E13: 86.7 | F13: 100
A14: June | B14: 939 | C14: 58.22 | D14: 13.62 | E14: 93.9 | F14: 15

Sheet HW(5an)
A1: ="In the Total Column add just the "&C7&", "&D7&", "&E7&" and "&F7&" expenses for each employee." -> In the Total Column add just the FICA, Medicare, Fed Tax and Pension expenses for each employee.
A2: Then in the Net Pay Column, calculate Net Pay in an efficient way (Net Pay is Gross pay minus all the expenses).
A7: Name | B7: Gross | C7: FICA | D7: Medicare | E7: Fed Tax | F7: Pension | G7: Total | H7: Net Pay | J7: Inefficient
A8: Sioux | B8: 754 | C8: 46.75 | D8: 10.93 | E8: 75.4 | F8: 0 | G8: =SUM(C8:F8) -> 133.08 | H8: =B8-G8 -> 620.92 | J8: =B8-C8-D8-E8-F8 -> 620.92
A9: Abdi | B9: 822 | C9: 50.96 | D9: 11.92 | E9: 82.2 | F9: 25 | G9: =SUM(C9:F9) -> 170.08 | H9: =B9-G9 -> 651.92 | J9: 651.92
A10: Gigi | B10: 911 | C10: 56.48 | D10: 13.21 | E10: 91.1 | F10: 0 | G10: 160.79 | H10: 750.21 | J10: 750.21
A11: Imani | B11: 897 | C11: 55.61 | D11: 13.01 | E11: 89.7 | F11: 0 | G11: 158.32 | H11: 738.68 | J11: 738.68
A12: Bob | B12: 829 | C12: 51.4 | D12: 12.02 | E12: 82.9 | F12: 75 | G12: 221.32 | H12: 607.68 | J12: 607.68
A13: Tyrone | B13: 867 | C13: 53.75 | D13: 12.57 | E13: 86.7 | F13: 100 | G13: 253.02 | H13: 613.98 | J13: 613.98
A14: June | B14: 939 | C14: 58.22 | D14: 13.62 | E14: 93.9 | F14: 15 | G14: 180.74 | H14: 758.26 | J14: 758.26

Sheet HW(6)
A1: ="In cell "&ADDRESS(ROW(B8),COLUMN(B8),4)&" the formula is "&A6&" * "&A7 -> In cell B8 the formula is Quantity * Price
A2: Some where in the sheet check that the answer is correct with Division.
A5: Product Sold | B5: Aspen
A6: Quantity | B6: 12
A7: Price | B7: 43
A8: Total | B8: =B7*B6 -> 516 | C8: =IF(_xlfn.ISFORMULA(B8),_xlfn.FORMULATEXT(B8),"") -> =B7*B6

Sheet HW(6an)
A1: ="In cell "&ADDRESS(ROW(B8),COLUMN(B8),4)&" the formula is "&A6&" * "&A7 -> In cell B8 the formula is Quantity * Price
A2: Some where in the sheet check that the answer is correct with Division.
A5: Product Sold | B5: Aspen
A6: Quantity | B6: 12
A7: Price | B7: 43
A8: Total | B8: =B7*B6 -> 516 | C8: =IF(_xlfn.ISFORMULA(B8),_xlfn.FORMULATEXT(B8),"") -> =B7*B6
A10: Product Sold | B10: Aspen
A11: Total | B11: 516 | C11: =IF(_xlfn.ISFORMULA(B11),_xlfn.FORMULATEXT(B11),"") -> 
A12: Quantity | B12: 12
A13: Price | B13: =B11/B12 -> 43 | C13: =IF(_xlfn.ISFORMULA(B13),_xlfn.FORMULATEXT(B13),"") -> =B11/B12 | D13: Check ü

Sheet HW(7)
A1: In Finance we often times have to use Exponents.
A2: Famous Finance Formula for Future Value of Lump Sum Investment with Annual Rate:
A3: FV = (1 + AnnualInterestRate)^Years*AmountInvested
A4: ="In Cell "&ADDRESS(ROW(B9),COLUMN(B9),4)&" create the formula to calculate how much an investment of "&DOLLAR(B8)&" will be worth in "&B7&" years in the Annual Interest Rate is "&B6 -> In Cell B9 create the formula to calculate how much an investment of $5,000.00 will be worth in 20 years in the Annual Interest Rate is 0.05
A6: Annual Interest Rate | B6: 0.05
A7: Years Left in Bank | B7: 20
A8: Amount Deposited in Bank | B8: 5000 | D8: FV = (1 + AnnualInterestRate)^Years*AmountInvested
A9: Future Value | D9: ="FV = (1+"&B6&")^"&B7&"*"&B8 -> FV = (1+0.05)^20*5000

Sheet HW(7an)
A1: In Finance we often times have to use Exponents.
A2: Famous Finance Formula for Future Value of Lump Sum Investment with Annual Rate:
A3: FV = (1 + AnnualInterestRate)^Years*AmountInvested
A4: ="In Cell "&ADDRESS(ROW(B9),COLUMN(B9),4)&" create the formula to calculate how much an investment of "&DOLLAR(B8)&" will be worth in "&B7&" years in the Annual Interest Rate is "&B6 -> In Cell B9 create the formula to calculate how much an investment of $5,000.00 will be worth in 20 years in the Annual Interest Rate is 0.05
A6: Annual Interest Rate | B6: 0.05
A7: Years Left in Bank | B7: 20
A8: Amount Deposited in Bank | B8: 5000 | D8: FV = (1 + AnnualInterestRate)^Years*AmountInvested
A9: Future Value | B9: =(1+B6)^B7*B8 -> 13266.48853 | D9: ="FV = (1+"&B6&")^"&B7&"*"&B8 -> FV = (1+0.05)^20*5000
